[Event "58th Akiba Rubinstein A 2022"]
[Site "Polanica-Zdroj"]
[Date "2022.08.17"]
[Round "5.12"]
[White "Skrzyczek, Tomasz"]
[Black "Wolanski, Michal"]
[Result "1/2-1/2"]
[ECO "B31"]
[WhiteElo "1909"]
[BlackElo "2005"]
[Annotator "NA RC"]
[PlyCount "117"]
[EventDate "2022.08.13"]
[EventCountry "POL"]
[SourceTitle "playchess.com"]
[Source "ChessBase"]
[SourceQuality "1"]
[TimeControl "40/5400+30:1800+30"]

1. e4 {[%emt 0:00:05]} c5 {[%emt 0:00:04]} 2. Nf3 {[%emt 0:00:04]} Nc6 {[%emt 0:00:06]} 3. Bb5 {[%emt 0:00:03]} g6 {[%emt 0:00:06]} 4. O-O {[%emt 0:00:26]} Bg7 {[%emt 0:00:05]} 5. c3 {[%emt 0:00:18]} Nf6 {[%emt 0:00:26]} 6. Re1 {[%emt 0:00:22]} O-O {[%emt 0:00:25]} 7. d4 {[%emt 0:00:11]} cxd4 {[%emt 0:00:36]} 8. cxd4 {[%emt 0:00:02]} d5 {[%emt 0:00:18]} 9. e5 {[%emt 0:00:28]} Ne4 {[%emt 0:00:11]} 10. Bxc6 {[%emt 0:05:08]} bxc6 {[%emt 0:00:09]} 11. Be3 {[%emt 0:00:12]} Bg4 {[%emt 0:01:49]} 12. h3 {[%emt 0:01:37]} Bf5 {[%emt 0:04:44]} 13. g4 {[%emt 0:05:20]} Bd7 {[%emt 0:01:12]} 14. Nfd2 {[%emt 0:01:46]} Nxd2 {[%emt 0:01:32]} 15. Qxd2 {[%emt 0:00:14]} f6 {[%emt 0:02:31]} 16. exf6 {[%emt 0:01:47]} Rxf6 {[%emt 0:06:28]} 17. Nc3 {[%emt 0:00:23]} Qc7 {[%emt 0:13:50]} 18. Bg5 {[%emt 0:13:57]} Rf7 {[%emt 0:03:23]} 19. Re3 {[%emt 0:30:22]} Raf8 {[%emt 0:01:41]} 20. Rf1 {[%emt 0:00:10]} e5 {[%emt 0:01:19]} 21. dxe5 {[%emt 0:01:52]} Bxe5 {[%emt 0:00:24]} 22. Ne2 {[%emt 0:08:23]} c5 {[%emt 0:12:13]} 23. f4 {[%emt 0:01:11]} Bg7 {[%emt 0:03:52]} 24. Qxd5 {[%emt 0:01:03]} Bxb2 {[%emt 0:07:24]} 25. Be7 {[%emt 0:10:04]} Rc8 {[%emt 0:12:16]} 26. Rb1 {[%emt 0:03:23]} Bd4 {[%emt 0:12:00]} 27. Nxd4 {[%emt 0:02:44]} Qxf4 {[%emt 0:00:29]} 28. Rf3 {[%emt 0:07:39]} Qxd4+ {[%emt 0:00:28]} 29. Qxd4 {[%emt 0:00:06]} cxd4 {[%emt 0:00:06]} 30. Rxf7 {[%emt 0:00:24]} Kxf7 {[%emt 0:00:08]} 31. Bg5 {[%emt 0:00:08]} Ke6 {[%emt 0:01:40]} 32. Rb7 {[%emt 0:01:40]} Rc5 {[%emt 0:01:11]} 33. Bh6 {[%emt 0:02:12]} Ra5 {[%emt 0:01:13]} 34. Rb2 {[%emt 0:00:12]} Kd5 {[%emt 0:04:20]} 35. Bg7 {[%emt 0:00:44]} Ke4 {[%emt 0:00:34]} 36. Bxd4 {[%emt 0:00:59]} Kxd4 {[%emt 0:03:40]} 37. Rd2+ {[%emt 0:00:01]} Ke3 {[%emt 0:00:13]} 38. Rxd7 {[%emt 0:00:05]} Rxa2 {[%emt 0:00:08]} 39. Rxh7 {[%emt 0:00:12]} Kf3 {[%emt 0:00:13]} 40. g5 {[%emt 0:00:00]} Kf4 {[%emt 0:00:00]} 41. h4 {[%emt 0:06:50]} Kg3 {[%emt 0:11:24]} 42. Kf1 {[%emt 0:01:03]} Kg4 {[%emt 0:05:00]} 43. Rh6 {[%emt 0:04:36]} Kf5 {[%emt 0:01:50]} 44. Rh7 {[%emt 0:02:41]} a5 {[%emt 0:01:22]} 45. h5 {[%emt 0:06:19]} gxh5 {[%emt 0:01:03]} 46. Rxh5 {[%emt 0:00:09]} Kg6 {[%emt 0:00:23]} 47. Rh6+ {[%emt 0:00:09]} Kxg5 {[%emt 0:00:09]} 48. Ra6 {[%emt 0:00:02]} Kf4 {[%emt 0:00:25]} 49. Ke1 {[%emt 0:01:11]} Ke4 {[%emt 0:00:48]} 50. Kd1 {[%emt 0:00:29]} Kd4 {[%emt 0:00:17]} 51. Kc1 {[%emt 0:00:44]} Kc4 {[%emt 0:01:37]} 52. Kb1 {[%emt 0:00:09]} Ra4 {[%emt 0:00:34]} 53. Rh6 {[%emt 0:00:40]} Rb4+ {[%emt 0:01:21]} 54. Ka2 {[%emt 0:00:14]} Kb5 {[%emt 0:00:56]} 55. Ka3 {[%emt 0:00:19]} Rc4 {[%emt 0:01:47]} 56. Rh5+ {[%emt 0:00:10]} Rc5 {[%emt 0:00:04]} 57. Rxc5+ {[%emt 0:00:11]} Kxc5 {[%emt 0:00:04]} 58. Ka4 {[%emt 0:00:09]} Kc4 {[%emt 0:00:05]} 59. Kxa5 {[%emt 0:00:03]} 1/2-1/2

[Event "58th Akiba Rubinstein A 2022"]
[Site "Polanica-Zdroj"]
[Date "2022.08.17"]
[Round "5.13"]
[White "Czechowski, Jakub"]
[Black "Iwanczuk, Krzysztof"]
[Result "1/2-1/2"]
[ECO "D02"]
[WhiteElo "2003"]
[BlackElo "1947"]
[Annotator "NA RC"]
[PlyCount "69"]
[EventDate "2022.08.13"]
[EventCountry "POL"]
[SourceTitle "playchess.com"]
[Source "ChessBase"]
[SourceQuality "1"]
[TimeControl "40/5400+30:1800+30"]

1. d4 {[%emt 0:00:01]} d5 {[%emt 0:00:07]} 2. Nf3 {[%emt 0:00:19]} Nf6 {[%emt 0:00:06]} 3. g3 {[%emt 0:02:44]} c5 {[%emt 0:00:39]} 4. c3 {[%emt 0:00:42]} Nc6 {[%emt 0:03:49]} 5. Bg2 {[%emt 0:01:38]} e6 {[%emt 0:01:30]} 6. O-O {[%emt 0:00:11]} Be7 {[%emt 0:02:15]} 7. b3 {[%emt 0:09:20]} O-O {[%emt 0:01:16]} 8. e3 {[%emt 0:00:35]} b6 {[%emt 0:03:56]} 9. Qe2 {[%emt 0:01:14]} a5 {[%emt 0:01:41]} 10. Rd1 {[%emt 0:04:47]} a4 {[%emt 0:03:29]} 11. Bb2 {[%emt 0:01:04]} Qc7 {[%emt 0:18:17]} 12. c4 {[%emt 0:03:02]} Ba6 {[%emt 0:03:06]} 13. Nbd2 {[%emt 0:05:36]} Rac8 {[%emt 0:04:00]} 14. Ne5 {[%emt 0:20:33]} Na5 {[%emt 0:14:56]} 15. Rac1 {[%emt 0:02:42]} axb3 {[%emt 0:03:30]} 16. axb3 {[%emt 0:00:09]} Rfd8 {[%emt 0:01:36]} 17. Qf3 {[%emt 0:11:55]} dxc4 {[%emt 0:04:05]} 18. Nexc4 {[%emt 0:02:34]} Bb7 {[%emt 0:04:41]} 19. Qe2 {[%emt 0:00:45]} Bxg2 {[%emt 0:00:13]} 20. Kxg2 {[%emt 0:00:07]} Nc6 {[%emt 0:02:19]} 21. dxc5 {[%emt 0:01:13]} bxc5 {[%emt 0:00:29]} 22. Qf3 {[%emt 0:02:44]} Rb8 {[%emt 0:02:54]} 23. Bxf6 {[%emt 0:12:39]} Bxf6 {[%emt 0:00:59]} 24. Ne4 {[%emt 0:00:04]} Be7 {[%emt 0:00:38]} 25. Rxd8+ {[%emt 0:00:11]} Rxd8 {[%emt 0:00:34]} 26. Rd1 {[%emt 0:00:31]} Rd5 {[%emt 0:03:37]} 27. Nc3 {[%emt 0:02:31]} Rxd1 {[%emt 0:01:53]} 28. Qxd1 {[%emt 0:00:01]} Ne5 {[%emt 0:00:17]} 29. Nxe5 {[%emt 0:01:51]} Qxe5 {[%emt 0:00:10]} 30. Qd3 {[%emt 0:00:10]} f5 31. f4 {[%emt 0:05:09]} Qc7 {[%emt 0:08:40]} 32. e4 {[%emt 0:01:28]} Qb7 {[%emt 0:00:05]} 33. Qc4 {[%emt 0:00:03]} Kf7 {[%emt 0:00:39]} 34. Kg1 {[%emt 0:00:57]} g6 {[%emt 0:00:43]} 35. e5 {[%emt 0:03:58]} 1/2-1/2

[Event "58th Akiba Rubinstein A 2022"]
[Site "Polanica-Zdroj"]
[Date "2022.08.17"]
[Round "5.14"]
[White "Paszkowski, Krystian"]
[Black "Kazmierowski, Tymon"]
[Result "1/2-1/2"]
[ECO "B52"]
[WhiteElo "1988"]
[BlackElo "1961"]
[Annotator "NA RC"]
[PlyCount "58"]
[EventDate "2022.08.13"]
[EventCountry "POL"]
[SourceTitle "playchess.com"]
[Source "ChessBase"]
[SourceQuality "1"]
[TimeControl "40/5400+30:1800+30"]

1. e4 {[%emt 0:01:14]} c5 {[%emt 0:00:05]} 2. Nf3 {[%emt 0:00:03]} d6 {[%emt 0:00:05]} 3. Bb5+ {[%emt 0:00:06]} Bd7 {[%emt 0:00:04]} 4. Bxd7+ {[%emt 0:00:04]} Nxd7 {[%emt 0:00:04]} 5. O-O {[%emt 0:00:05]} Ngf6 {[%emt 0:00:04]} 6. Qe2 {[%emt 0:00:04]} e6 {[%emt 0:00:15]} 7. b3 {[%emt 0:00:09]} Be7 {[%emt 0:00:10]} 8. Bb2 {[%emt 0:00:16]} O-O {[%emt 0:00:14]} 9. c4 {[%emt 0:00:51]} a6 {[%emt 0:02:22]} 10. d4 {[%emt 0:03:22]} cxd4 {[%emt 0:01:31]} 11. Nxd4 {[%emt 0:00:07]} Qc7 {[%emt 0:01:12]} 12. Nc3 {[%emt 0:02:48]} Rfe8 {[%emt 0:07:19]} 13. Kh1 {[%emt 0:32:26]} d5 {[%emt 0:14:45]} 14. cxd5 {[%emt 0:11:23]} exd5 {[%emt 0:00:06]} 15. Nxd5 {[%emt 0:04:36]} Nxd5 {[%emt 0:00:35]} 16. exd5 {[%emt 0:00:02]} Ba3 {[%emt 0:03:02]} 17. Qd2 {[%emt 0:01:06]} Bxb2 {[%emt 0:00:09]} 18. Qxb2 {[%emt 0:00:12]} Nf6 {[%emt 0:01:13]} 19. Rad1 {[%emt 0:19:39]} Qe5 {[%emt 0:11:46]} 20. Qd2 {[%emt 0:08:14]} Qxd5 {[%emt 0:03:02]} 21. Nf3 {[%emt 0:02:13]} Qxd2 {[%emt 0:02:23]} 22. Rxd2 {[%emt 0:00:43]} Rac8 {[%emt 0:02:14]} 23. Kg1 {[%emt 0:04:33]} g6 {[%emt 0:02:02]} 24. g3 {[%emt 0:00:42]} Kg7 {[%emt 0:00:40]} 25. Kg2 {[%emt 0:02:14]} Re7 {[%emt 0:01:24]} 26. Rfd1 {[%emt 0:01:44]} Rec7 {[%emt 0:00:45]} 27. Re1 {[%emt 0:00:55]} Rc2 {[%emt 0:01:55]} 28. Ree2 {[%emt 0:00:23]} Rxd2 {[%emt 0:00:42]} 29. Rxd2 {[%emt 0:00:23]} Rc7 {[%emt 0:07:17]} 1/2-1/2

[Event "58th Akiba Rubinstein A 2022"]
[Site "Polanica-Zdroj"]
[Date "2022.08.17"]
[Round "5.15"]
[White "Siekanska, Zuzanna"]
[Black "Sliwerski, Radoslaw"]
[Result "0-1"]
[ECO "D38"]
[WhiteElo "1712"]
[BlackElo "1951"]
[Annotator "NA RC"]
[PlyCount "74"]
[EventDate "2022.08.13"]
[EventCountry "POL"]
[SourceTitle "playchess.com"]
[Source "ChessBase"]
[SourceQuality "1"]
[TimeControl "40/5400+30:1800+30"]

1. d4 {[%emt 0:00:03]} Nf6 {[%emt 0:00:02]} 2. c4 {[%emt 0:00:10]} e6 {[%emt 0:00:06]} 3. Nf3 {[%emt 0:00:09]} d5 {[%emt 0:00:12]} 4. Nc3 {[%emt 0:01:35]} Bb4 {[%emt 0:00:05]} 5. Qa4+ {[%emt 0:00:10]} Nc6 {[%emt 0:00:04]} 6. Bg5 {[%emt 0:00:52]} h6 {[%emt 0:00:41]} 7. Bxf6 {[%emt 0:00:18]} Qxf6 {[%emt 0:00:03]} 8. e3 {[%emt 0:01:15]} O-O {[%emt 0:11:37]} 9. a3 {[%emt 0:03:33]} Bxc3+ {[%emt 0:01:53]} 10. bxc3 {[%emt 0:00:09]} Qg6 {[%emt 0:03:13]} 11. Rc1 {[%emt 0:10:46]} dxc4 {[%emt 0:19:55]} 12. Qxc4 {[%emt 0:01:07]} Rd8 {[%emt 0:05:14]} 13. Qd3 {[%emt 0:02:23]} f5 {[%emt 0:02:38]} 14. g3 {[%emt 0:12:09]} e5 {[%emt 0:07:25]} 15. Qb5 {[%emt 0:05:07]} f4 {[%emt 0:09:13]} 16. Nxe5 {[%emt 0:05:54]} Nxe5 {[%emt 0:01:12]} 17. Qxe5 {[%emt 0:00:20]} fxe3 {[%emt 0:02:11]} 18. Bc4+ {[%emt 0:10:48]} Kh8 {[%emt 0:00:27]} 19. f3 {[%emt 0:05:37]} Qc6 {[%emt 0:05:05]} 20. Be2 {[%emt 0:00:26]} Bh3 {[%emt 0:03:17]} 21. Qh5 {[%emt 0:01:12]} Qe6 {[%emt 0:07:30]} 22. g4 {[%emt 0:02:13]} Bg2 {[%emt 0:01:01]} 23. Rg1 {[%emt 0:03:39]} Qa2 {[%emt 0:00:16]} 24. Rd1 {[%emt 0:00:46]} Bxf3 {[%emt 0:00:13]} 25. Qb5 {[%emt 0:00:31]} Bxe2 {[%emt 0:03:01]} 26. Qxe2 {[%emt 0:00:10]} Qxa3 {[%emt 0:00:12]} 27. Qc2 {[%emt 0:01:45]} Rf8 {[%emt 0:00:52]} 28. g5 {[%emt 0:01:24]} e2 {[%emt 0:03:50]} 29. Rb1 {[%emt 0:00:55]} Qd6 {[%emt 0:02:24]} 30. gxh6 {[%emt 0:02:18]} Qxh6 {[%emt 0:00:10]} 31. Qe4 {[%emt 0:01:10]} Qh3 {[%emt 0:06:14]} 32. Rc1 {[%emt 0:03:10]} Rae8 {[%emt 0:00:51]} 33. Qg6 {[%emt 0:01:26]} Rf1+ {[%emt 0:02:49]} 34. Kd2 {[%emt 0:00:20]} Qe3+ {[%emt 0:00:11]} 35. Kc2 {[%emt 0:00:09]} Rxc1+ {[%emt 0:00:07]} 36. Rxc1 {[%emt 0:00:14]} Qxc1+ {[%emt 0:00:09]} 37. Kxc1 {[%emt 0:00:08]} e1=Q+ {[%emt 0:00:05]} 0-1

[Event "58th Akiba Rubinstein A 2022"]
[Site "Polanica-Zdroj"]
[Date "2022.08.18"]
[Round "6.1"]
[White "Razin, Vadim"]
[Black "Koziorowicz, Michal"]
[Result "0-1"]
[ECO "E10"]
[WhiteElo "2428"]
[BlackElo "2231"]
[Annotator "TA"]
[PlyCount "90"]
[EventDate "2022.08.13"]
[EventCountry "POL"]
[SourceTitle "playchess.com"]
[Source "ChessBase"]
[SourceQuality "1"]
[TimeControl "40/5400+30:1800+30"]

{[%evp 14,90,34,43,51,38,32,12,12,6,34,28,24,0,63,55,60,44,78,80,120,82,79,55,49,54,94,31,36,-21,-22,-23,-20,-25,-6,-23,0,0,0,-52,-52,-64,-56,-65,0,-191,-184,-183,-189,-185,-169,-195,-195,-195,-195,-247,-244,-211,-218,-600,-586,-587,-575,-740,-577,-793,-822,-799,-791,-1367,-1249,-12825,-12586,-10620,-5387,-12835,-5912,-1840,-1434]} 1. d4 {[%emt 0:00:13]} Nf6 {[%emt 0:00:20]} 2. Nf3 {[%emt 0:00:47]} e6 {[%emt 0:00:56]} 3. c4 {[%emt 0:00:33]} c5 {[%emt 0:01:08]} 4. d5 {[%emt 0:00:17]} b5 {[%emt 0:00:16]} 5. Bg5 {[%emt 0:03:12]} exd5 {[%emt 0:01:21]} 6. cxd5 {[%emt 0:01:05]} h6 {[%emt 0:00:14]} 7. Bxf6 {[%emt 0:03:14]} Qxf6 {[%emt 0:00:06]} 8. Qc2 {[%emt 0:00:34]} c4 {[%emt 0:00:33] E10: Blumenfeld Gambit.} 9. Nc3 {[%emt 0:03:53]} Bb4 {[%emt 0:00:14]} 10. Qe4+ {[%emt 0:10:07]} Kd8 {[%emt 0:05:15] The position is equal.} 11. Qd4 {[%emt 0:06:13]} Qxd4 {[%emt 0:08:34]} 12. Nxd4 {[%emt 0:00:02]} a6 {[%emt 0:01:16] [#]} 13. g3 $146 {[%emt 0:06:46]} ({Predecessor:} 13. f3 Re8 14. a4 Bc5 15. O-O-O d6 16. axb5 Re3 17. b6 Bxb6 18. h4 a5 19. h5 Bc5 20. Kc2 Na6 21. Rh4 Nb4+ 22. Kd2 Re5 23. e3 Ba6 24. Ra1 Bb6 {½-½ (24) Kirienko,V (2313)-Liushnin,K (2326) ICCF email 2017}) 13... Bb7 {[%emt 0:11:47]} (13... Bc5 $11 14. Rd1 d6) 14. Bg2 $14 {[%emt 0:01:35]} d6 {[%emt 0:00:23]} 15. O-O {[%emt 0:02:39]} Kc7 {[%emt 0:02:11]} 16. a4 {[%emt 0:09:07]} Bc5 {[%emt 0:01:10]} 17. Rfd1 {[%emt 0:00:10]} Kb6 {[%emt 0:06:56]} 18. Ne4 {[%emt 0:15:22] Nf5 is the strong threat.} (18. b3 {looks sharper.} cxb3 19. Nxb3 Nd7 20. Rab1) 18... Bxd4 {[%emt 0:13:22]} 19. Rxd4 {[%emt 0:00:13]} Rd8 {[%emt 0:02:24]} 20. b3 {[%emt 0:10:37]} (20. a5+ $16 Ka7 21. g4) 20... cxb3 {[%emt 0:05:42]} 21. Rb1 {[%emt 0:02:49]} (21. a5+ $1 $14 Ka7 22. g4) 21... Nd7 $36 {[%emt 0:07:28][%cal Bb8d7,Bd7c5,Bc5e4][%mdl 2080] And now ...Nc5 would win. Black is more active.} 22. Rxb3 {[%emt 0:09:45]} Nc5 {[%emt 0:01:32]} 23. Rb1 {[%emt 0:02:24]} Nxe4 $1 {[%emt 0:00:18]} 24. Bxe4 {[%emt 0:00:14]} Rdc8 {[%emt 0:00:55]} 25. Bd3 {[%emt 0:03:51]} Rc5 {[%emt 0:00:25]} 26. e4 {[%emt 0:01:19]} ({White should play} 26. f3 $11) 26... Rac8 $15 {[%emt 0:00:32]} 27. Kg2 {[%emt 0:00:54]} Rc1 {[%emt 0:00:50]} 28. Rb2 {[%emt 0:01:47]} Rd1 {[%emt 0:02:58]} (28... R8c3 $15 29. axb5 a5) 29. Bxb5 $2 {[%emt 0:03:35] White is on the road to losing.} Rxd4 $19 {[%emt 0:00:44]} 30. Bc6+ {[%emt 0:00:02]} Kc5 {[%emt 0:02:19]} 31. Rxb7 {[%emt 0:00:24][%mdl 4096] Endgame KRR-KRB} Rf8 {[%emt 0:00:43]} 32. Ra7 {[%emt 0:01:07]} f5 {[%emt 0:04:19]} ({And not} 32... Rxe4 33. Rxa6 Re1 34. Ra5+ Kc4 35. Ra7 $17) 33. exf5 {[%emt 0:01:34]} Rxf5 {[%emt 0:00:01]} 34. f4 {[%emt 0:00:14]} (34. Rc7 $142 Rf8 35. f4) 34... g5 {[%emt 0:00:18]} 35. Rc7 {[%emt 0:00:34] [#] Threatens to win with Bd7+.} Kb4 {[%emt 0:01:56]} ({Resist} 35... gxf4 36. Bd7+ Kxd5 37. Bxf5 $18) ({Weaker is} 35... Rd2+ 36. Kh3 Rf8 37. fxg5 hxg5 38. Bb5+ Kb4 39. Bxa6) 36. Bd7 $2 {[%emt 0:00:44]} (36. Rb7+ Ka3 37. fxg5) 36... Rf7 {[%emt 0:02:14] Black is clearly winning.} 37. f5 {[%emt 0:00:16]} Rxd5 {[%emt 0:03:35]} 38. g4 {[%emt 0:00:07]} Rd4 {[%emt 0:00:03]} 39. Kg3 {[%emt 0:00:27]} Ka5 {[%emt 0:00:32]} 40. Rb7 {[%emt 0:00:00]} Rxa4 {[%emt 0:00:00]} 41. Bxa4 {[%emt 0:00:31]} Rxb7 {[%emt 0:01:20]} 42. Bc2 {[%emt 0:00:14]} Kb4 {[%emt 0:00:29]} 43. Be4 {[%emt 0:00:20]} Rb8 {[%emt 0:00:35] [#] aiming for ...a5.} 44. Bd5 {[%emt 0:00:20]} Kc5 {[%emt 0:00:06]} (44... a5 $142 45. Ba2 Kc5) 45. Be6 {[%emt 0:00:21]} Kd4 {Weighted Error Value: White=0.75/Black=0.21 (precise)} 0-1

[Event "58th Akiba Rubinstein A 2022"]
[Site "Polanica-Zdroj"]
[Date "2022.08.18"]
[Round "6.2"]
[White "Cyborowski, Lukasz"]
[Black "Dziewonski, Dariusz"]
[Result "1/2-1/2"]
[ECO "D37"]
[WhiteElo "2483"]
[BlackElo "2029"]
[Annotator "TA"]
[PlyCount "92"]
[EventDate "2022.08.13"]
[EventCountry "POL"]
[SourceTitle "playchess.com"]
[Source "ChessBase"]
[SourceQuality "1"]
[TimeControl "40/5400+30:1800+30"]

{[%evp 9,92,27,15,20,17,14,23,23,17,13,31,28,31,10,14,0,0,4,1,10,34,24,36,30,21,22,45,16,23,26,33,25,26,12,20,23,21,20,74,78,70,23,15,22,25,21,20,17,95,26,28,0,0,0,0,0,0,0,0,0,0,0,0,0,0,0,7,0,0,0,8,8,8,8,8,8,8,0,0,0,0,0,0,0,0]} 1. d4 {[%emt 0:00:15]} d5 {[%emt 0:00:03]} 2. Nf3 {[%emt 0:00:08]} Nf6 {[%emt 0:00:06]} 3. c4 {[%emt 0:00:09]} e6 {[%emt 0:00:10]} 4. Nc3 {[%emt 0:00:11]} Be7 {[%emt 0:00:06]} 5. Bf4 {[%emt 0:00:16]} O-O {[%emt 0:00:24]} 6. Rc1 {[%emt 0:00:26] D37: Queen's Gambit Declined: 5 Bf4.} Nbd7 {[%emt 0:19:12]} 7. cxd5 {[%emt 0:02:08]} exd5 {[%emt 0:01:14]} 8. e3 {[%emt 0:00:48] White has an edge.} c6 {[%emt 0:01:34]} 9. h3 {[%emt 0:02:18]} Ne4 {[%emt 0:09:12]} 10. Bd3 {[%emt 0:01:36]} Ndf6 {[%emt 0:01:36]} 11. Qc2 {[%emt 0:00:54]} Bf5 {[%emt 0:07:00]} 12. O-O {[%emt 0:03:48]} Nxc3 {[%emt 0:04:03]} 13. bxc3 {[%emt 0:01:01]} (13. Bxf5 Nxa2 14. Ra1 Nb4 $17) 13... Bxd3 {[%emt 0:00:29]} 14. Qxd3 {[%emt 0:00:06] [#]} Bd6 $146 {[%emt 0:07:09]} ({Predecessor:} 14... b5 15. Ne5 Qc8 16. Rc2 Re8 17. a4 a6 18. Ra1 Bd6 19. Bh2 c5 20. Qd1 c4 {½-½ (36) Laube,B (2334)-Iniguez,M (2298) ICCF email 2010}) 15. Bg5 {[%emt 0:03:05]} h6 {[%emt 0:00:43]} 16. Bxf6 {[%emt 0:00:15]} Qxf6 {[%emt 0:00:06]} 17. c4 {[%emt 0:00:04]} Qe6 {[%emt 0:10:14]} 18. cxd5 {[%emt 0:09:26]} Qxd5 {[%emt 0:00:05]} 19. Rc2 {[%emt 0:05:13]} f5 {[%emt 0:11:28]} 20. Nd2 {[%emt 0:04:10][%cal Bf3d2,Bd2b3,Bb3a5][%mdl 32]} Rad8 {[%emt 0:07:09]} 21. Qb3 {[%emt 0:10:36]} Qxb3 {[%emt 0:00:58]} 22. Nxb3 {[%emt 0:00:10]} Rd7 {[%emt 0:04:10]} 23. Rb1 {[%emt 0:03:31]} Re8 {[%emt 0:06:46]} (23... Rff7 $11) 24. Na5 $16 {[%emt 0:09:56]} f4 {[%emt 0:00:13]} 25. Rxb7 {[%emt 0:00:52]} (25. exf4 $14 Bxf4 26. g3) 25... Rxb7 $11 {[%emt 0:00:11]} 26. Nxb7 {[%emt 0:00:06]} fxe3 {[%emt 0:00:03]} 27. fxe3 $14 {[%emt 0:00:38][%cal Bf2e3,Be3e4][%mdl 4128] Endgame KRB-KRN} (27. Nxd6 $2 e2 28. Rxe2 Rxe2 $19) 27... Bg3 {[%emt 0:00:49]} 28. Rc3 {[%emt 0:01:15]} ({Don't play} 28. Rxc6 Rxe3 29. Rc1 Rd3 $11) 28... Rb8 {[%emt 0:02:21] [#]} (28... Rf8 $1 $11) 29. Rb3 {[%emt 0:00:12]} ({White should try} 29. e4 $1 $16) 29... Rf8 $1 $11 {[%emt 0:00:54]} 30. Na5 {[%emt 0:13:48]} Rf2 {[%emt 0:00:34] The position is equal.} 31. e4 {[%emt 0:00:15]} ({Much weaker is} 31. Nxc6 Rc2 32. Kf1 (32. Ne7+ $2 Kf7 $19) 32... Rxc6 $19) 31... Rxa2 {[%emt 0:00:11] ( -> ...Ra1+)} 32. Rxg3 {[%emt 0:00:05]} Rxa5 {[%emt 0:00:03] KR-KR} 33. Rg6 {[%emt 0:00:06]} Ra4 {[%emt 0:00:44]} 34. Rd6 {[%emt 0:00:05]} c5 {[%emt 0:00:35]} 35. dxc5 {[%emt 0:08:43]} Rxe4 {[%emt 0:00:04]} 36. Ra6 {[%emt 0:00:03]} Rc4 {[%emt 0:00:11]} 37. c6 {[%emt 0:00:04]} Rc2 {[%emt 0:00:55]} 38. g4 {[%emt 0:00:08]} Kf8 {[%emt 0:03:24]} 39. Kf1 {[%emt 0:00:35]} Ke8 {[%emt 0:01:21]} 40. Rxa7 {[%emt 0:00:00]} Rxc6 {[%emt 0:00:00]} 41. Rxg7 {[%emt 0:02:17]} Kf8 {[%emt 0:00:40]} 42. Rd7 {[%emt 0:00:46]} h5 {[%emt 0:09:26]} 43. g5 {[%emt 0:02:05]} Rc5 {[%emt 0:00:24]} 44. h4 {[%emt 0:01:05]} Rc4 {[%emt 0:00:08]} 45. Rh7 {[%emt 0:00:30]} Rxh4 {[%emt 0:00:14]} 46. g6 {[%emt 0:00:02]} Rg4 {[%emt 0:00:16] Weighted Error Value: White=0.08 (flawless) /Black=0.08 (flawless)} 1/2-1/2

[Event "58th Akiba Rubinstein A 2022"]
[Site "Polanica-Zdroj"]
[Date "2022.08.18"]
[Round "6.3"]
[White "Siekanska, Maria"]
[Black "Bugajski, Robert"]
[Result "1-0"]
[ECO "D86"]
[WhiteElo "1964"]
[BlackElo "2075"]
[Annotator "NA RC"]
[PlyCount "51"]
[EventDate "2022.08.13"]
[EventCountry "POL"]
[SourceTitle "playchess.com"]
[Source "ChessBase"]
[SourceQuality "1"]
[TimeControl "40/5400+30:1800+30"]

1. d4 {[%emt 0:00:02]} Nf6 {[%emt 0:00:11]} 2. c4 {[%emt 0:00:08]} g6 {[%emt 0:00:06]} 3. Nc3 {[%emt 0:00:04]} d5 {[%emt 0:00:06]} 4. cxd5 {[%emt 0:00:05]} Nxd5 {[%emt 0:00:06]} 5. e4 {[%emt 0:00:07]} Nxc3 {[%emt 0:00:04]} 6. bxc3 {[%emt 0:00:05]} Bg7 {[%emt 0:00:08]} 7. Bc4 {[%emt 0:00:14]} c5 {[%emt 0:00:18]} 8. Ne2 {[%emt 0:00:11]} Nc6 {[%emt 0:00:20]} 9. Be3 {[%emt 0:00:23]} O-O {[%emt 0:00:21]} 10. O-O {[%emt 0:00:11]} Bg4 {[%emt 0:01:54]} 11. f3 {[%emt 0:00:15]} Bd7 {[%emt 0:00:20]} 12. Rc1 {[%emt 0:02:19]} b6 {[%emt 0:15:12]} 13. Qd2 {[%emt 0:01:36]} Qc7 {[%emt 0:07:54]} 14. Bh6 {[%emt 0:02:10]} Rad8 {[%emt 0:02:48]} 15. h4 {[%emt 0:03:26]} Qd6 {[%emt 0:11:40]} 16. e5 {[%emt 0:04:49]} Qc7 {[%emt 0:01:23]} 17. Bxg7 {[%emt 0:01:32]} Kxg7 {[%emt 0:00:02]} 18. Qe3 {[%emt 0:00:48]} Bf5 {[%emt 0:02:07]} 19. g4 {[%emt 0:18:39]} Be6 {[%emt 0:07:15]} 20. Bxe6 {[%emt 0:03:02]} fxe6 {[%emt 0:00:01]} 21. Nf4 {[%emt 0:12:28]} Kf7 {[%emt 0:01:16]} 22. h5 {[%emt 0:02:53]} g5 {[%emt 0:11:44]} 23. Nh3 {[%emt 0:01:51]} h6 {[%emt 0:01:33]} 24. f4 {[%emt 0:00:09]} gxf4 {[%emt 0:06:48]} 25. Nxf4 {[%emt 0:00:21]} Rg8 {[%emt 0:00:49]} 26. Nd5+ {[%emt 0:00:11]} 1-0

[Event "58th Akiba Rubinstein A 2022"]
[Site "Polanica-Zdroj"]
[Date "2022.08.18"]
[Round "6.4"]
[White "Kowalczyk, Rafal"]
[Black "Antoniewicz, Jakub"]
[Result "1-0"]
[ECO "B01"]
[WhiteElo "2239"]
[BlackElo "1931"]
[Annotator "NA RC"]
[PlyCount "67"]
[EventDate "2022.08.13"]
[EventCountry "POL"]
[SourceTitle "playchess.com"]
[Source "ChessBase"]
[SourceQuality "1"]
[TimeControl "40/5400+30:1800+30"]

1. e4 {[%emt 0:00:04]} d5 {[%emt 0:05:55]} 2. exd5 {[%emt 0:00:42]} Qxd5 {[%emt 0:00:07]} 3. Nc3 {[%emt 0:00:11]} Qd6 {[%emt 0:00:04]} 4. d4 {[%emt 0:00:30]} c6 {[%emt 0:00:18]} 5. Nf3 {[%emt 0:00:42]} Nf6 {[%emt 0:00:04]} 6. Ne5 {[%emt 0:01:27]} Nbd7 {[%emt 0:01:30]} 7. Bf4 {[%emt 0:00:16]} Nd5 {[%emt 0:02:02]} 8. Nxd5 {[%emt 0:17:07]} Qxd5 {[%emt 0:01:20]} 9. Nf3 Nf6 {[%emt 0:09:02]} 10. Be2 {[%emt 0:10:50]} Bf5 {[%emt 0:00:55]} 11. O-O {[%emt 0:01:38]} Qe4 {[%emt 0:02:23]} 12. Be5 {[%emt 0:18:33]} Qxc2 {[%emt 0:00:18]} 13. Qe1 {[%emt 0:00:08]} e6 {[%emt 0:01:31]} 14. Rc1 {[%emt 0:05:28]} Qa4 {[%emt 0:13:13]} 15. h3 {[%emt 0:08:19]} Nd7 {[%emt 0:12:59]} 16. g4 {[%emt 0:05:23]} Bg6 {[%emt 0:00:18]} 17. b3 {[%emt 0:00:16]} Qxa2 {[%emt 0:01:55]} 18. d5 {[%emt 0:00:11]} Nxe5 {[%emt 0:21:16]} 19. Nxe5 {[%emt 0:00:56]} Bd6 {[%emt 0:01:46]} 20. Nxg6 {[%emt 0:14:44]} hxg6 {[%emt 0:00:04]} 21. dxe6 {[%emt 0:00:08]} Rxh3 {[%emt 0:03:53]} 22. exf7+ {[%emt 0:00:29]} Kd7 {[%emt 0:05:40]} 23. g5 {[%emt 0:11:22]} Rh4 {[%emt 0:00:13]} 24. Rc4 {[%emt 0:00:02]} Rah8 {[%emt 0:11:19]} 25. Rxh4 {[%emt 0:00:07]} Rxh4 {[%emt 0:00:14]} 26. Bf3 {[%emt 0:00:46]} Rf4 {[%emt 0:02:24]} 27. Qc3 {[%emt 0:01:35]} Rxf7 {[%emt 0:01:25]} 28. Ra1 {[%emt 0:00:09]} Qxa1+ {[%emt 0:01:50]} 29. Qxa1 {[%emt 0:00:02]} Rxf3 {[%emt 0:00:04]} 30. Qxg7+ {[%emt 0:00:10]} Be7 {[%emt 0:00:35]} 31. Qxg6 {[%emt 0:00:48]} Rxb3 {[%emt 0:00:23]} 32. Qf5+ {[%emt 0:00:19]} Kd8 {[%emt 0:00:36]} 33. g6 {[%emt 0:00:14]} Rb5 {[%emt 0:00:52]} 34. Qxb5 {[%emt 0:00:11]} 1-0